[Event "Titled Tuesday Blitz February 28 Late 2023"]
[White "Ismagilov, Damir"]
[Black "Makridis, Dimitrios"]
[WhiteFideId "34199982"]
[BlackFideId "25864475"]
[WhiteElo "2078"]
[BlackElo "2277"]
[Result "0-1"]
[Round "05"]
[TimeControl "180+2"]
[Date "2023.02.28"]
[WhiteClock "0:01:05"]
[BlackClock "0:02:33"]

1. e4 {[%clk 0:02:51]}  c5 {[%clk 0:02:56]} 2. Nf3 {[%clk 0:02:51]}  e6 {[%clk 0:02:54]} 3. g3 {[%clk 0:02:51]}  Nc6 {[%clk 0:02:54]} 4. Bg2 {[%clk 0:02:51]}  Nf6 {[%clk 0:02:53]} 5. Qe2 {[%clk 0:02:51]}  d5 {[%clk 0:02:53]} 6. exd5 {[%clk 0:02:51]}  Nxd5 {[%clk 0:02:53]} 7. O-O {[%clk 0:02:52]}  Be7 {[%clk 0:02:54]} 8. Rd1 {[%clk 0:02:53]}  O-O {[%clk 0:02:53]} 9. d4 {[%clk 0:02:52]}  cxd4 {[%clk 0:02:54]} 10. Nxd4 {[%clk 0:02:53]}  Nxd4 {[%clk 0:02:55]} 11. Rxd4 {[%clk 0:02:54]}  Qb6 {[%clk 0:02:54]} 12. Rxd5 {[%clk 0:02:30]}  exd5 {[%clk 0:02:55]} 13. Qxe7 {[%clk 0:02:31]}  Bh3 {[%clk 0:02:56]} 14. Bxh3 {[%clk 0:02:20]}  Rae8 {[%clk 0:02:52]} 15. Qg5 {[%clk 0:01:40]}  Re2 {[%clk 0:02:40]} 16. Qe3 {[%clk 0:01:22]}  Rxe3 {[%clk 0:02:36]} 17. fxe3 {[%clk 0:01:23]}  d4 {[%clk 0:02:34]} 18. Na3 {[%clk 0:01:16]}  dxe3 {[%clk 0:02:33]} 19. Kf1 {[%clk 0:01:10]}  Qf6+ {[%clk 0:02:32]} 20. Ke1 {[%clk 0:01:05]}  Qf2+ {[%clk 0:02:33]} 0-1


[Site "https://www.chess.com"]

[Event "Titled Tuesday Blitz February 28 Late 2023"]
[White "Sielecki, Christof"]
[Black "Real_OceanStorm"]
[WhiteFideId "4620437"]
[WhiteElo "2443"]
[BlackElo "2771"]
[Result "0-1"]
[Round "05"]
[TimeControl "180+2"]
[Date "2023.02.28"]
[WhiteClock "0:00:01"]
[BlackClock "0:00:53"]

1. e4 {[%clk 0:03:00]}  e5 {[%clk 0:03:00]} 2. Nf3 {[%clk 0:03:00]}  Nc6 {[%clk 0:03:00]} 3. Bb5 {[%clk 0:03:00]}  Nf6 {[%clk 0:03:00]} 4. d3 {[%clk 0:03:00]}  a6 {[%clk 0:03:01]} 5. Bxc6 {[%clk 0:02:59]}  bxc6 {[%clk 0:03:01]} 6. Nxe5 {[%clk 0:02:59]}  Qe7 {[%clk 0:03:01]} 7. Nf3 {[%clk 0:02:55]}  d5 {[%clk 0:03:01]} 8. e5 {[%clk 0:02:53]}  Bg4 {[%clk 0:03:01]} 9. O-O {[%clk 0:02:46]}  Nd7 {[%clk 0:03:01]} 10. d4 {[%clk 0:02:41]}  O-O-O {[%clk 0:03:01]} 11. Be3 {[%clk 0:02:31]}  c5 {[%clk 0:03:01]} 12. c3 {[%clk 0:02:30]}  Bxf3 {[%clk 0:03:01]} 13. Qxf3 {[%clk 0:02:29]}  Qe6 {[%clk 0:03:01]} 14. Nd2 {[%clk 0:02:25]}  cxd4 {[%clk 0:03:01]} 15. cxd4 {[%clk 0:02:25]}  f6 {[%clk 0:03:01]} 16. exf6 {[%clk 0:02:20]}  Nxf6 {[%clk 0:03:01]} 17. Rfc1 {[%clk 0:02:17]}  Bd6 {[%clk 0:03:01]} 18. Bf4 {[%clk 0:02:12]}  Rhf8 {[%clk 0:02:58]} 19. Bxd6 {[%clk 0:02:09]}  Qxd6 {[%clk 0:02:56]} 20. Nb3 {[%clk 0:01:41]}  Ne4 {[%clk 0:02:55]} 21. Qg4+ {[%clk 0:01:36]}  Rd7 {[%clk 0:02:41]} 22. Rc2 {[%clk 0:01:29]}  Rf4 {[%clk 0:02:37]} 23. Qh3 {[%clk 0:01:24]}  Ng5 {[%clk 0:02:37]} 24. Qe3 {[%clk 0:01:21]}  Re7 {[%clk 0:02:35]} 25. Qd3 {[%clk 0:01:13]}  Rh4 {[%clk 0:02:32]} 26. h3 {[%clk 0:01:09]}  Rhe4 {[%clk 0:02:18]} 27. Rcc1 {[%clk 0:00:58]}  Ne6 {[%clk 0:02:18]} 28. g3 {[%clk 0:00:48]}  Ng5 {[%clk 0:02:08]} 29. h4 {[%clk 0:00:47]}  Ne6 {[%clk 0:02:08]} 30. Nc5 {[%clk 0:00:47]}  Rxd4 {[%clk 0:01:57]} 31. Qf5 {[%clk 0:00:44]}  Kb8 {[%clk 0:01:46]} 32. Nxe6 {[%clk 0:00:40]}  Qxe6 {[%clk 0:01:45]} 33. Qf8+ {[%clk 0:00:37]}  Kb7 {[%clk 0:01:45]} 34. Qf3 {[%clk 0:00:36]}  Rd2 {[%clk 0:01:39]} 35. Rd1 {[%clk 0:00:34]}  Re2 {[%clk 0:01:39]} 36. Rxd5 {[%clk 0:00:32]}  Qc6 {[%clk 0:01:28]} 37. Rad1 {[%clk 0:00:29]}  Rxb2 {[%clk 0:01:28]} 38. R1d3 {[%clk 0:00:20]}  Re1+ {[%clk 0:01:17]} 39. Kg2 {[%clk 0:00:21]}  Rc2 {[%clk 0:01:17]} 40. Rb3+ {[%clk 0:00:19]}  Ka7 {[%clk 0:01:16]} 41. Rd7 {[%clk 0:00:09]}  Qxf3+ {[%clk 0:01:07]} 42. Kxf3 {[%clk 0:00:10]}  h5 {[%clk 0:01:07]} 43. a4 {[%clk 0:00:09]}  Rf1 {[%clk 0:01:07]} 44. Rxg7 {[%clk 0:00:07]}  Rfxf2+ {[%clk 0:01:08]} 45. Ke3 {[%clk 0:00:06]}  Rfe2+ {[%clk 0:01:08]} 46. Kd3 {[%clk 0:00:06]}  Rcd2+ {[%clk 0:01:08]} 47. Kc3 {[%clk 0:00:06]}  Rc2+ {[%clk 0:01:08]} 48. Kb4 {[%clk 0:00:06]}  Re4+ {[%clk 0:01:08]} 49. Ka3 {[%clk 0:00:05]}  Ree2 {[%clk 0:01:08]} 50. Rg5 {[%clk 0:00:04]}  Ra2+ {[%clk 0:01:08]} 51. Kb4 {[%clk 0:00:04]}  Re4+ {[%clk 0:01:08]} 52. Kc3 {[%clk 0:00:04]}  Re3+ {[%clk 0:01:08]} 53. Kb4 {[%clk 0:00:04]}  Re4+ {[%clk 0:01:09]} 54. Kc3 {[%clk 0:00:05]}  Raxa4 {[%clk 0:00:59]} 55. Rxh5 {[%clk 0:00:05]}  Rac4+ {[%clk 0:00:59]} 56. Kb2 {[%clk 0:00:04]}  Re2+ {[%clk 0:00:59]} 57. Ka3 {[%clk 0:00:04]}  Rc1 {[%clk 0:00:59]} 58. Rb2 {[%clk 0:00:01]}  Re3+ {[%clk 0:00:59]} 59. Ka2 {[%clk 0:00:01]}  Rxg3 {[%clk 0:00:59]} 60. Rg5 {[%clk 0:00:01]}  Rh3 {[%clk 0:00:53]} 0-1


[Site "https://www.chess.com"]

[Event "Titled Tuesday Blitz February 28 Late 2023"]
[White "Fernandez Guillen, Ernesto J."]
[Black "Djokic, Mihailo"]
[WhiteFideId "3512428"]
[BlackFideId "976440"]
[WhiteElo "2423"]
[BlackElo "2294"]
[Result "1-0"]
[Round "05"]
[TimeControl "180+2"]
[Date "2023.02.28"]
[WhiteClock "0:00:26"]
[BlackClock "0:00:06"]

1. e4 {[%clk 0:03:00]}  c5 {[%clk 0:03:00]} 2. Nf3 {[%clk 0:03:00]}  d6 {[%clk 0:03:00]} 3. d4 {[%clk 0:02:58]}  cxd4 {[%clk 0:03:01]} 4. Nxd4 {[%clk 0:02:59]}  Nf6 {[%clk 0:03:01]} 5. Nc3 {[%clk 0:02:58]}  g6 {[%clk 0:03:02]} 6. Bc4 {[%clk 0:02:58]}  Bg7 {[%clk 0:03:02]} 7. f3 {[%clk 0:02:59]}  O-O {[%clk 0:03:03]} 8. Be3 {[%clk 0:03:00]}  Nc6 {[%clk 0:03:03]} 9. Qd2 {[%clk 0:03:00]}  Bd7 {[%clk 0:03:04]} 10. h4 {[%clk 0:02:59]}  Rc8 {[%clk 0:03:04]} 11. Bb3 {[%clk 0:02:59]}  h5 {[%clk 0:03:04]} 12. O-O-O {[%clk 0:02:59]}  Ne5 {[%clk 0:03:05]} 13. Kb1 {[%clk 0:03:00]}  a6 {[%clk 0:02:56]} 14. Bh6 {[%clk 0:02:57]}  Bxh6 {[%clk 0:02:54]} 15. Qxh6 {[%clk 0:02:58]}  Rxc3 {[%clk 0:02:54]} 16. bxc3 {[%clk 0:02:57]}  Qa5 {[%clk 0:02:35]} 17. g4 {[%clk 0:02:56]}  Bxg4 {[%clk 0:02:13]} 18. Rhg1 {[%clk 0:02:45]}  Qxc3 {[%clk 0:02:05]} 19. fxg4 {[%clk 0:02:38]}  Nfxg4 {[%clk 0:01:57]} 20. Rxg4 {[%clk 0:02:36]}  hxg4 {[%clk 0:01:56]} 21. h5 {[%clk 0:02:36]}  Qh3 {[%clk 0:01:55]} 22. Ne6 {[%clk 0:02:24]}  fxe6 {[%clk 0:01:42]} 23. Bxe6+ {[%clk 0:02:25]}  Rf7 {[%clk 0:01:37]} 24. Bxf7+ {[%clk 0:02:25]}  Kxf7 {[%clk 0:01:21]} 25. Qf4+ {[%clk 0:02:05]}  Ke6 {[%clk 0:01:20]} 26. hxg6 {[%clk 0:02:03]}  Qf3 {[%clk 0:01:20]} 27. Qf5+ {[%clk 0:02:00]}  Qxf5 {[%clk 0:01:20]} 28. exf5+ {[%clk 0:02:00]}  Kf6 {[%clk 0:01:18]} 29. Rf1 {[%clk 0:01:45]}  Nf3 {[%clk 0:00:21]} 30. Kc1 {[%clk 0:01:40]}  Nd4 {[%clk 0:00:12]} 31. Kd2 {[%clk 0:01:35]}  g3 {[%clk 0:00:12]} 32. Ke3 {[%clk 0:01:32]}  g2 {[%clk 0:00:11]} 33. Rg1 {[%clk 0:01:27]}  Nxf5+ {[%clk 0:00:12]} 34. Ke4 {[%clk 0:01:27]}  Kxg6 {[%clk 0:00:08]} 35. Rxg2+ {[%clk 0:01:27]}  Kf6 {[%clk 0:00:09]} 36. Rh2 {[%clk 0:01:27]}  e6 {[%clk 0:00:02]} 37. Rh7 {[%clk 0:01:25]}  d5+ {[%clk 0:00:03]} 38. Kd3 {[%clk 0:01:24]}  Nd6 {[%clk 0:00:02]} 39. Kd4 {[%clk 0:01:21]}  Kf5 {[%clk 0:00:01]} 40. Rd7 {[%clk 0:01:15]}  Nb5+ {[%clk 0:00:01]} 41. Kd3 {[%clk 0:01:14]}  Ke5 {[%clk 0:00:01]} 42. Rxb7 {[%clk 0:01:14]}  Nd6 {[%clk 0:00:01]} 43. Rb6 {[%clk 0:01:13]}  a5 {[%clk 0:00:02]} 44. Rc6 {[%clk 0:01:03]}  Nc4 {[%clk 0:00:02]} 45. c3 {[%clk 0:00:56]}  Kf5 {[%clk 0:00:02]} 46. Kd4 {[%clk 0:00:54]}  Nd2 {[%clk 0:00:01]} 47. Ra6 {[%clk 0:00:52]}  Nc4 {[%clk 0:00:01]} 48. a4 {[%clk 0:00:52]}  Kf6 {[%clk 0:00:01]} 49. Ra8 {[%clk 0:00:43]}  Kf5 {[%clk 0:00:02]} 50. Rf8+ {[%clk 0:00:43]}  Kg6 {[%clk 0:00:02]} 51. Rf1 {[%clk 0:00:42]}  Kg5 {[%clk 0:00:03]} 52. Rf2 {[%clk 0:00:40]}  Kg4 {[%clk 0:00:03]} 53. Rf6 {[%clk 0:00:37]}  Nb2 {[%clk 0:00:01]} 54. Rxe6 {[%clk 0:00:36]}  Nxa4 {[%clk 0:00:02]} 55. Ra6 {[%clk 0:00:34]}  Nb2 {[%clk 0:00:02]} 56. Rxa5 {[%clk 0:00:34]}  Nc4 {[%clk 0:00:03]} 57. Rxd5 {[%clk 0:00:34]}  Nd2 {[%clk 0:00:03]} 58. c4 {[%clk 0:00:32]}  Kf4 {[%clk 0:00:04]} 59. c5 {[%clk 0:00:31]}  Nb3+ {[%clk 0:00:05]} 60. Kc4 {[%clk 0:00:31]}  Ke4 {[%clk 0:00:05]} 61. Rd7 {[%clk 0:00:25]}  Na5+ {[%clk 0:00:06]} 62. Kb5 {[%clk 0:00:25]}  Nb3 {[%clk 0:00:06]} 63. c6 {[%clk 0:00:26]} 1-0


[Site "https://www.chess.com"]

[Event "Titled Tuesday Blitz February 28 Late 2023"]
[White "Arencibia Monduy, Antonio"]
[Black "Garcia Ramos, Daniel"]
[WhiteFideId "3507939"]
[BlackFideId "32010311"]
[WhiteElo "2550"]
[BlackElo "2341"]
[Result "0-1"]
[Round "05"]
[TimeControl "180+2"]
[Date "2023.02.28"]
[WhiteClock "0:00:04"]
[BlackClock "0:01:18"]

1. e4 {[%clk 0:03:00]}  c6 {[%clk 0:02:57]} 2. d4 {[%clk 0:03:00]}  d5 {[%clk 0:02:58]} 3. Nc3 {[%clk 0:03:00]}  dxe4 {[%clk 0:02:59]} 4. Nxe4 {[%clk 0:03:01]}  Nf6 {[%clk 0:02:59]} 5. Nxf6+ {[%clk 0:03:01]}  exf6 {[%clk 0:03:00]} 6. Nf3 {[%clk 0:03:01]}  Bd6 {[%clk 0:03:01]} 7. Be2 {[%clk 0:03:01]}  O-O {[%clk 0:03:01]} 8. O-O {[%clk 0:03:02]}  Re8 {[%clk 0:03:02]} 9. Re1 {[%clk 0:03:02]}  Bg4 {[%clk 0:03:02]} 10. Nd2 {[%clk 0:03:00]}  Bxe2 {[%clk 0:03:00]} 11. Rxe2 {[%clk 0:03:00]}  Nd7 {[%clk 0:03:00]} 12. Rxe8+ {[%clk 0:03:00]}  Qxe8 {[%clk 0:02:58]} 13. Nc4 {[%clk 0:02:56]}  Bc7 {[%clk 0:02:57]} 14. Bd2 {[%clk 0:02:56]}  Qe6 {[%clk 0:02:56]} 15. Qf1 {[%clk 0:02:46]}  Nb6 {[%clk 0:02:52]} 16. Nxb6 {[%clk 0:02:43]}  axb6 {[%clk 0:02:52]} 17. a3 {[%clk 0:02:42]}  b5 {[%clk 0:02:51]} 18. Qd3 {[%clk 0:02:34]}  Re8 {[%clk 0:02:50]} 19. g3 {[%clk 0:02:34]}  Qd5 {[%clk 0:02:49]} 20. Re1 {[%clk 0:02:29]}  Rxe1+ {[%clk 0:02:48]} 21. Bxe1 {[%clk 0:02:30]}  h5 {[%clk 0:02:49]} 22. h4 {[%clk 0:02:17]}  g6 {[%clk 0:02:46]} 23. Bd2 {[%clk 0:02:17]}  Kg7 {[%clk 0:02:46]} 24. b3 {[%clk 0:02:08]}  f5 {[%clk 0:02:39]} 25. c4 {[%clk 0:02:05]}  bxc4 {[%clk 0:02:39]} 26. bxc4 {[%clk 0:02:05]}  Qe6 {[%clk 0:02:38]} 27. d5 {[%clk 0:02:03]}  cxd5 {[%clk 0:02:37]} 28. cxd5 {[%clk 0:02:01]}  Qd7 {[%clk 0:02:34]} 29. Bc3+ {[%clk 0:02:00]}  f6 {[%clk 0:02:33]} 30. Bb4 {[%clk 0:01:55]}  Bd6 {[%clk 0:02:30]} 31. Bxd6 {[%clk 0:01:50]}  Qxd6 {[%clk 0:02:29]} 32. Qb5 {[%clk 0:01:50]}  Qc7 {[%clk 0:02:11]} 33. Qd3 {[%clk 0:01:45]}  Qd6 {[%clk 0:02:08]} 34. Qb3 {[%clk 0:01:44]}  b6 {[%clk 0:02:07]} 35. a4 {[%clk 0:01:41]}  f4 {[%clk 0:02:06]} 36. gxf4 {[%clk 0:01:13]}  Qxf4 {[%clk 0:02:05]} 37. Qxb6 {[%clk 0:00:56]}  Qg4+ {[%clk 0:02:03]} 38. Kf1 {[%clk 0:00:55]}  Qd1+ {[%clk 0:02:02]} 39. Kg2 {[%clk 0:00:56]}  Qxd5+ {[%clk 0:02:03]} 40. Kh2 {[%clk 0:00:49]}  Qe5+ {[%clk 0:02:01]} 41. Kh3 {[%clk 0:00:38]}  Qf5+ {[%clk 0:01:53]} 42. Kg2 {[%clk 0:00:38]}  Qg4+ {[%clk 0:01:52]} 43. Kf1 {[%clk 0:00:37]}  Qd1+ {[%clk 0:01:51]} 44. Kg2 {[%clk 0:00:37]}  Qxa4 {[%clk 0:01:52]} 45. Qc7+ {[%clk 0:00:36]}  Kh6 {[%clk 0:01:51]} 46. Qc1+ {[%clk 0:00:36]}  g5 {[%clk 0:01:47]} 47. hxg5+ {[%clk 0:00:36]}  fxg5 {[%clk 0:01:48]} 48. f3 {[%clk 0:00:25]}  h4 {[%clk 0:01:47]} 49. Qc7 {[%clk 0:00:22]}  Qa2+ {[%clk 0:01:39]} 50. Kg1 {[%clk 0:00:15]}  Qe6 {[%clk 0:01:36]} 51. Qb7 {[%clk 0:00:10]}  Kg6 {[%clk 0:01:32]} 52. Kg2 {[%clk 0:00:10]}  Qe2+ {[%clk 0:01:31]} 53. Kg1 {[%clk 0:00:10]}  h3 {[%clk 0:01:21]} 54. Qb6+ {[%clk 0:00:08]}  Kh5 {[%clk 0:01:20]} 55. Qf2 {[%clk 0:00:03]}  Qxf2+ {[%clk 0:01:17]} 56. Kxf2 {[%clk 0:00:04]}  Kh4 {[%clk 0:01:18]} 0-1


[Site "https://www.chess.com"]

[Event "Titled Tuesday Blitz February 28 Late 2023"]
[White "Kleinman, Michael"]
[Black "Tan, Zhongyi"]
[WhiteFideId "2609479"]
[BlackFideId "8603642"]
[WhiteElo "2287"]
[BlackElo "2519"]
[Result "1/2-1/2"]
[Round "05"]
[TimeControl "180+2"]
[Date "2023.02.28"]
[WhiteClock "0:00:03"]
[BlackClock "0:00:04"]

1. e4 {[%clk 0:03:00]}  e5 {[%clk 0:02:59]} 2. Nf3 {[%clk 0:03:01]}  Nc6 {[%clk 0:02:58]} 3. Bb5 {[%clk 0:03:01]}  Nf6 {[%clk 0:02:55]} 4. O-O {[%clk 0:03:00]}  Nxe4 {[%clk 0:02:51]} 5. d4 {[%clk 0:03:00]}  Nd6 {[%clk 0:02:50]} 6. Bxc6 {[%clk 0:03:00]}  dxc6 {[%clk 0:02:51]} 7. dxe5 {[%clk 0:03:01]}  Nf5 {[%clk 0:02:51]} 8. Qxd8+ {[%clk 0:03:01]}  Kxd8 {[%clk 0:02:52]} 9. Nc3 {[%clk 0:02:59]}  Bd7 {[%clk 0:02:50]} 10. h3 {[%clk 0:02:56]}  Be7 {[%clk 0:02:45]} 11. Bf4 {[%clk 0:02:51]}  h6 {[%clk 0:02:41]} 12. Rad1 {[%clk 0:02:51]}  Kc8 {[%clk 0:02:41]} 13. Rd3 {[%clk 0:02:39]}  b6 {[%clk 0:02:33]} 14. g4 {[%clk 0:02:27]}  Nh4 {[%clk 0:02:32]} 15. Nxh4 {[%clk 0:02:21]}  Bxh4 {[%clk 0:02:33]} 16. Rfd1 {[%clk 0:02:09]}  Be6 {[%clk 0:02:19]} 17. Kg2 {[%clk 0:02:06]}  Kb7 {[%clk 0:02:11]} 18. b3 {[%clk 0:02:05]}  Rad8 {[%clk 0:02:09]} 19. Bg3 {[%clk 0:02:01]}  Be7 {[%clk 0:02:05]} 20. f4 {[%clk 0:01:59]}  g6 {[%clk 0:01:58]} 21. Rxd8 {[%clk 0:01:50]}  Rxd8 {[%clk 0:01:55]} 22. Rxd8 {[%clk 0:01:49]}  Bxd8 {[%clk 0:01:56]} 23. Kf3 {[%clk 0:01:48]}  h5 {[%clk 0:01:51]} 24. Ne4 {[%clk 0:01:42]}  hxg4+ {[%clk 0:01:43]} 25. hxg4 {[%clk 0:01:41]}  c5 {[%clk 0:01:43]} 26. c4 {[%clk 0:01:40]}  Kc6 {[%clk 0:01:37]} 27. Nf2 {[%clk 0:01:39]}  b5 {[%clk 0:01:31]} 28. cxb5+ {[%clk 0:01:36]}  Kxb5 {[%clk 0:01:32]} 29. Ke4 {[%clk 0:01:34]}  c4 {[%clk 0:01:27]} 30. bxc4+ {[%clk 0:01:08]}  Bxc4 {[%clk 0:01:25]} 31. a3 {[%clk 0:01:07]}  Be7 {[%clk 0:01:23]} 32. f5 {[%clk 0:01:05]}  Bxa3 {[%clk 0:01:13]} 33. e6 {[%clk 0:01:02]}  gxf5+ {[%clk 0:01:12]} 34. gxf5 {[%clk 0:01:01]}  fxe6 {[%clk 0:01:12]} 35. Bxc7 {[%clk 0:00:53]}  Bd5+ {[%clk 0:00:49]} 36. Ke5 {[%clk 0:00:30]}  Kc6 {[%clk 0:00:48]} 37. Ba5 {[%clk 0:00:17]}  Bb2+ {[%clk 0:00:32]} 38. Kf4 {[%clk 0:00:17]}  exf5 {[%clk 0:00:20]} 39. Kxf5 {[%clk 0:00:16]}  Kb5 {[%clk 0:00:19]} 40. Bd8 {[%clk 0:00:12]}  a5 {[%clk 0:00:17]} 41. Nd3 {[%clk 0:00:12]}  Bd4 {[%clk 0:00:16]} 42. Nf4 {[%clk 0:00:09]}  Bb3 {[%clk 0:00:12]} 43. Ne6 {[%clk 0:00:07]}  Bc3 {[%clk 0:00:06]} 44. Nc7+ {[%clk 0:00:06]}  Kc4 {[%clk 0:00:05]} 45. Ne6 {[%clk 0:00:02]}  a4 {[%clk 0:00:05]} 46. Be7 {[%clk 0:00:03]}  Bc2+ {[%clk 0:00:04]} 47. Kf4 {[%clk 0:00:02]}  Kb3 {[%clk 0:00:02]} 48. Nc5+ {[%clk 0:00:02]}  Kb2 {[%clk 0:00:02]} 49. Nxa4+ {[%clk 0:00:02]}  Bxa4 {[%clk 0:00:02]} 50. Kg5 {[%clk 0:00:03]}  Bc2 {[%clk 0:00:03]} 51. Bf6 {[%clk 0:00:03]}  Kb3 {[%clk 0:00:04]} 52. Bxc3 {[%clk 0:00:03]} 1/2-1/2


[Site "https://www.chess.com"]

[Event "Titled Tuesday Blitz February 28 Late 2023"]
[White "Lewtak, Damian"]
[Black "Mazurkiewicz, Michal"]
[WhiteFideId "1141724"]
[BlackFideId "1124943"]
[WhiteElo "2302"]
[BlackElo "2054"]
[Result "1-0"]
[Round "05"]
[TimeControl "180+2"]
[Date "2023.02.28"]
[WhiteClock "0:00:40"]
[BlackClock "0:00:04"]

1. e4 {[%clk 0:03:00]}  d6 {[%clk 0:02:59]} 2. Nf3 {[%clk 0:03:00]}  Nf6 {[%clk 0:03:00]} 3. c3 {[%clk 0:03:01]}  c6 {[%clk 0:02:59]} 4. d3 {[%clk 0:03:01]}  e5 {[%clk 0:02:57]} 5. Be2 {[%clk 0:03:01]}  Be7 {[%clk 0:02:57]} 6. O-O {[%clk 0:03:02]}  O-O {[%clk 0:02:58]} 7. Re1 {[%clk 0:03:02]}  b5 {[%clk 0:02:58]} 8. Nbd2 {[%clk 0:03:01]}  Nbd7 {[%clk 0:02:58]} 9. Nf1 {[%clk 0:03:00]}  d5 {[%clk 0:02:58]} 10. Ng3 {[%clk 0:02:59]}  Re8 {[%clk 0:02:57]} 11. Bg5 {[%clk 0:02:54]}  h6 {[%clk 0:02:48]} 12. Bxf6 {[%clk 0:02:54]}  Nxf6 {[%clk 0:02:45]} 13. Nxe5 {[%clk 0:02:52]}  Qc7 {[%clk 0:01:47]} 14. Nf3 {[%clk 0:02:51]}  dxe4 {[%clk 0:01:45]} 15. dxe4 {[%clk 0:02:50]}  Bd6 {[%clk 0:01:45]} 16. Bd3 {[%clk 0:02:48]}  h5 {[%clk 0:01:07]} 17. Nf1 {[%clk 0:02:39]}  Ng4 {[%clk 0:00:55]} 18. h3 {[%clk 0:02:28]}  Ne5 {[%clk 0:00:40]} 19. Nxe5 {[%clk 0:02:28]}  Bxe5 {[%clk 0:00:41]} 20. Qc2 {[%clk 0:02:26]}  Re6 {[%clk 0:00:41]} 21. Ne3 {[%clk 0:02:20]}  Rg6 {[%clk 0:00:40]} 22. Nf5 {[%clk 0:02:19]}  Be6 {[%clk 0:00:29]} 23. Rad1 {[%clk 0:02:11]}  Re8 {[%clk 0:00:22]} 24. Re3 {[%clk 0:01:54]}  Bxf5 {[%clk 0:00:18]} 25. exf5 {[%clk 0:01:53]}  Bh2+ {[%clk 0:00:05]} 26. Kh1 {[%clk 0:01:51]}  Rxe3 {[%clk 0:00:05]} 27. fxg6 {[%clk 0:01:44]}  Re7 {[%clk 0:00:04]} 28. g3 {[%clk 0:01:35]}  Bxg3 {[%clk 0:00:04]} 29. fxg3 {[%clk 0:01:35]}  Qxg3 {[%clk 0:00:04]} 30. Qg2 {[%clk 0:01:35]}  Qh4 {[%clk 0:00:03]} 31. gxf7+ {[%clk 0:01:32]}  Kf8 {[%clk 0:00:03]} 32. Bg6 {[%clk 0:01:05]}  Re3 {[%clk 0:00:02]} 33. Bf5 {[%clk 0:00:50]}  Rg3 {[%clk 0:00:03]} 34. Qe2 {[%clk 0:00:42]}  Rxh3+ {[%clk 0:00:02]} 35. Bxh3 {[%clk 0:00:43]}  Qxh3+ {[%clk 0:00:03]} 36. Kg1 {[%clk 0:00:44]}  Qg3+ {[%clk 0:00:03]} 37. Kf1 {[%clk 0:00:44]}  Qh3+ {[%clk 0:00:02]} 38. Ke1 {[%clk 0:00:44]}  Qg3+ {[%clk 0:00:02]} 39. Kd2 {[%clk 0:00:42]}  Qf4+ {[%clk 0:00:02]} 40. Kc2 {[%clk 0:00:40]}  Qf5+ {[%clk 0:00:03]} 41. Qd3 {[%clk 0:00:41]}  Qf2+ {[%clk 0:00:03]} 42. Rd2 {[%clk 0:00:41]}  Qxf7 {[%clk 0:00:04]} 43. Qd8+ {[%clk 0:00:40]} 1-0


[Site "https://www.chess.com"]

[Event "Titled Tuesday Blitz February 28 Late 2023"]
[White "Fajdetic, Hrvoje"]
[Black "Vlassov, Nikolai"]
[WhiteFideId "14501945"]
[BlackFideId "4103360"]
[WhiteElo "2185"]
[BlackElo "2324"]
[Result "0-1"]
[Round "05"]
[TimeControl "180+2"]
[Date "2023.02.28"]
[WhiteClock "0:00:09"]
[BlackClock "0:01:11"]

1. d4 {[%clk 0:02:59]}  Nf6 {[%clk 0:02:59]} 2. Bf4 {[%clk 0:03:00]}  g6 {[%clk 0:02:58]} 3. Nc3 {[%clk 0:02:59]}  d5 {[%clk 0:02:58]} 4. e3 {[%clk 0:02:59]}  c6 {[%clk 0:02:57]} 5. h4 {[%clk 0:02:54]}  Qb6 {[%clk 0:02:56]} 6. Qd2 {[%clk 0:02:47]}  Qxb2 {[%clk 0:02:50]} 7. Rb1 {[%clk 0:02:47]}  Qa3 {[%clk 0:02:50]} 8. f3 {[%clk 0:02:42]}  h5 {[%clk 0:02:35]} 9. Bd3 {[%clk 0:02:10]}  Nbd7 {[%clk 0:02:32]} 10. Bc7 {[%clk 0:01:36]}  b5 {[%clk 0:02:20]} 11. Rb3 {[%clk 0:01:24]}  Qa6 {[%clk 0:02:15]} 12. Nxb5 {[%clk 0:01:07]}  cxb5 {[%clk 0:02:10]} 13. Bxb5 {[%clk 0:01:08]}  Qe6 {[%clk 0:02:04]} 14. Nh3 {[%clk 0:01:06]}  Bh6 {[%clk 0:02:03]} 15. Bf4 {[%clk 0:00:53]}  Bxf4 {[%clk 0:01:57]} 16. Nxf4 {[%clk 0:00:54]}  Qd6 {[%clk 0:01:57]} 17. c4 {[%clk 0:00:40]}  dxc4 {[%clk 0:01:42]} 18. Bxc4 {[%clk 0:00:41]}  e5 {[%clk 0:01:34]} 19. Ne2 {[%clk 0:00:16]}  O-O {[%clk 0:01:30]} 20. Qd3 {[%clk 0:00:13]}  Kg7 {[%clk 0:01:25]} 21. g4 {[%clk 0:00:12]}  hxg4 {[%clk 0:01:21]} 22. h5 {[%clk 0:00:12]}  gxf3 {[%clk 0:01:17]} 23. h6+ {[%clk 0:00:09]}  Kh7 {[%clk 0:01:17]} 24. Ng3 {[%clk 0:00:10]}  exd4 {[%clk 0:01:12]} 25. exd4 {[%clk 0:00:09]}  Qxg3+ {[%clk 0:01:11]} 0-1


[Site "https://www.chess.com"]

[Event "Titled Tuesday Blitz February 28 Late 2023"]
[White "Florescu, Codrut-Constantin"]
[Black "Aung Thant Zin"]
[WhiteFideId "1202200"]
[BlackFideId "13000063"]
[WhiteElo "2191"]
[BlackElo "2278"]
[Result "1-0"]
[Round "05"]
[TimeControl "180+2"]
[Date "2023.02.28"]
[WhiteClock "0:00:19"]
[BlackClock "0:00:01"]

1. e4 {[%clk 0:02:55]}  c5 {[%clk 0:02:59]} 2. Nf3 {[%clk 0:02:55]}  Nc6 {[%clk 0:02:59]} 3. d3 {[%clk 0:02:55]}  Nf6 {[%clk 0:02:58]} 4. g3 {[%clk 0:02:55]}  e6 {[%clk 0:02:58]} 5. Bg2 {[%clk 0:02:55]}  d5 {[%clk 0:02:59]} 6. Nbd2 {[%clk 0:02:55]}  dxe4 {[%clk 0:02:58]} 7. dxe4 {[%clk 0:02:54]}  Be7 {[%clk 0:02:58]} 8. O-O {[%clk 0:02:54]}  O-O {[%clk 0:02:58]} 9. c3 {[%clk 0:02:54]}  Rb8 {[%clk 0:02:56]} 10. Re1 {[%clk 0:02:53]}  b6 {[%clk 0:02:54]} 11. e5 {[%clk 0:02:53]}  Nd5 {[%clk 0:02:54]} 12. Ne4 {[%clk 0:02:47]}  Bb7 {[%clk 0:02:54]} 13. Qc2 {[%clk 0:02:46]}  Qc7 {[%clk 0:02:52]} 14. Neg5 {[%clk 0:02:36]}  Bxg5 {[%clk 0:02:43]} 15. Nxg5 {[%clk 0:02:34]}  g6 {[%clk 0:02:44]} 16. f4 {[%clk 0:02:29]}  Nce7 {[%clk 0:02:26]} 17. Ne4 {[%clk 0:02:25]}  f5 {[%clk 0:02:07]} 18. exf6 {[%clk 0:02:23]}  Nxf6 {[%clk 0:02:07]} 19. Ng5 {[%clk 0:02:21]}  Bxg2 {[%clk 0:02:00]} 20. Qxg2 {[%clk 0:02:21]}  Qb7 {[%clk 0:01:42]} 21. Rxe6 {[%clk 0:02:16]}  Qxg2+ {[%clk 0:01:33]} 22. Kxg2 {[%clk 0:02:15]}  Nf5 {[%clk 0:01:34]} 23. Nf3 {[%clk 0:01:45]}  Rbd8 {[%clk 0:01:22]} 24. Re1 {[%clk 0:01:32]}  Rd3 {[%clk 0:00:58]} 25. Ne5 {[%clk 0:01:28]}  Rd5 {[%clk 0:00:58]} 26. a4 {[%clk 0:01:13]}  Rfd8 {[%clk 0:00:55]} 27. Kf3 {[%clk 0:00:57]}  Kg7 {[%clk 0:00:28]} 28. Be3 {[%clk 0:00:53]}  Nxe3 {[%clk 0:00:26]} 29. Rxe3 {[%clk 0:00:52]}  Rd2 {[%clk 0:00:26]} 30. Re2 {[%clk 0:00:52]}  R8d5 {[%clk 0:00:17]} 31. a5 {[%clk 0:00:52]}  b5 {[%clk 0:00:14]} 32. a6 {[%clk 0:00:52]}  Rd6 {[%clk 0:00:10]} 33. Ra5 {[%clk 0:00:48]}  Rxe2 {[%clk 0:00:09]} 34. Kxe2 {[%clk 0:00:47]}  Rb6 {[%clk 0:00:08]} 35. Ra1 {[%clk 0:00:31]}  Nd5 {[%clk 0:00:08]} 36. Rd1 {[%clk 0:00:30]}  Nf6 {[%clk 0:00:05]} 37. g4 {[%clk 0:00:19]}  Rxa6 {[%clk 0:00:03]} 38. g5 {[%clk 0:00:20]}  Ne4 {[%clk 0:00:02]} 39. Rd7+ {[%clk 0:00:19]}  Kf8 {[%clk 0:00:02]} 40. Ke3 {[%clk 0:00:19]}  Nd6 {[%clk 0:00:02]} 41. Rxh7 {[%clk 0:00:17]}  Nf5+ {[%clk 0:00:02]} 42. Ke4 {[%clk 0:00:18]}  Ra2 {[%clk 0:00:02]} 43. Nxg6+ {[%clk 0:00:18]}  Kg8 {[%clk 0:00:01]} 44. Rh8+ {[%clk 0:00:18]}  Kg7 {[%clk 0:00:01]} 45. Kxf5 {[%clk 0:00:19]}  Rxb2 {[%clk 0:00:01]} 46. Rb8 {[%clk 0:00:19]} 1-0


[Site "https://www.chess.com"]